[Event "Late-Titled-Tuesday-Blitz-October-03-2023"]
[Site "Chess.com"]
[Date "2023.10.03"]
[Round "2"]
[White "Zq1"]
[Black "Korchmar_Vasiliy"]
[Result "1-0"]
[WhiteElo "2525"]
[BlackElo "2701"]
[TimeControl "180+1"]
[EndTime "14:17:35 PDT"]
[Termination "Zq1 won on time"]

1. d4 {[%clk 0:03:00.9]} 1... Nf6 {[%clk 0:02:59.7]} 2. c4 {[%clk 0:03:00.9]}
2... e6 {[%clk 0:03:00.2]} 3. Nf3 {[%clk 0:02:59.5]} 3... d5 {[%clk 0:03:00.7]}
4. e3 {[%clk 0:02:58.6]} 4... b6 {[%clk 0:02:40.7]} 5. Nc3 {[%clk 0:02:55.2]}
5... Bb7 {[%clk 0:02:36.3]} 6. b3 {[%clk 0:02:54.8]} 6... Bb4 {[%clk 0:02:29.6]}
7. Bd2 {[%clk 0:02:53.9]} 7... O-O {[%clk 0:02:29.1]} 8. Be2 {[%clk 0:02:52.2]}
8... Nbd7 {[%clk 0:02:27.8]} 9. O-O {[%clk 0:02:51.5]} 9... a6 {[%clk
0:02:26.8]} 10. Nxd5 {[%clk 0:02:39.4]} 10... Bd6 {[%clk 0:02:06.4]} 11. Nc3
{[%clk 0:02:30.6]} 11... e5 {[%clk 0:02:04.3]} 12. d5 {[%clk 0:02:27.5]} 12...
e4 {[%clk 0:02:02.3]} 13. Ng5 {[%clk 0:02:18.5]} 13... Qe7 {[%clk 0:01:55.8]}
14. Qc2 {[%clk 0:02:13.7]} 14... Rae8 {[%clk 0:01:48.2]} 15. f4 {[%clk
0:02:07.6]} 15... exf3 {[%clk 0:01:23]} 16. Nxf3 {[%clk 0:01:56.2]} 16... c6
{[%clk 0:01:21.6]} 17. dxc6 {[%clk 0:01:50]} 17... Bxc6 {[%clk 0:01:22.5]} 18.
Rae1 {[%clk 0:01:49.1]} 18... Ng4 {[%clk 0:01:11.2]} 19. Kh1 {[%clk 0:01:22.8]}
19... Bxf3 {[%clk 0:00:59.7]} 20. Rxf3 {[%clk 0:01:20.8]} 20... Qh4 {[%clk
0:00:28.8]} 21. h3 {[%clk 0:01:11.1]} 21... Nde5 {[%clk 0:00:27.6]} 22. Rf4
{[%clk 0:01:05.9]} 22... g5 {[%clk 0:00:11]} 23. Rxg4 {[%clk 0:01:05.3]} 23...
Nxg4 {[%clk 0:00:10.2]} 24. Bxg4 {[%clk 0:01:05.3]} 24... Qg3 {[%clk 0:00:10.1]}
25. Kg1 {[%clk 0:01:05.4]} 25... f5 {[%clk 0:00:05.1]} 26. Bf3 {[%clk
0:01:02.6]} 26... g4 {[%clk 0:00:02.9]} 27. Bd5+ {[%clk 0:01:02.3]} 27... Kh8
{[%clk 0:00:03.5]} 28. h4 {[%clk 0:00:49.1]} 28... Qh2+ {[%clk 0:00:02.2]} 29.
Kf1 {[%clk 0:00:49]} 29... Qh1+ {[%clk 0:00:02.2]} 30. Ke2 {[%clk 0:00:49]}
30... Qxh4 {[%clk 0:00:02.6]} 31. Kd1 {[%clk 0:00:45.5]} 31... f4 {[%clk
0:00:02.5]} 32. exf4 {[%clk 0:00:35.8]} 32... Rxe1+ {[%clk 0:00:01.9]} 33. Bxe1
{[%clk 0:00:34.3]} 33... Qh1 {[%clk 0:00:02.3]} 34. Ne2 {[%clk 0:00:29.9]} 34...
Be7 {[%clk 0:00:01.7]} 35. Kd2 {[%clk 0:00:20.2]} 35... Bf6 {[%clk 0:00:01.8]}
36. Bf2 {[%clk 0:00:19]} 36... Qh6 {[%clk 0:00:02]} 37. Qd3 {[%clk 0:00:18]}
37... Re8 {[%clk 0:00:01.8]} 38. Bd4 {[%clk 0:00:16.5]} 38... Qg7 {[%clk
0:00:01.8]} 39. Bxf6 {[%clk 0:00:14.5]} 39... Qxf6 {[%clk 0:00:02.7]} 40. Qc2
{[%clk 0:00:12.9]} 40... h5 {[%clk 0:00:02.5]} 41. c5 {[%clk 0:00:11.7]} 41...
bxc5 {[%clk 0:00:02.4]} 42. Bc4 {[%clk 0:00:11.3]} 42... h4 {[%clk 0:00:02.3]}
43. Kc1 {[%clk 0:00:11.1]} 43... h3 {[%clk 0:00:02.2]} 44. gxh3 {[%clk
0:00:10.5]} 44... gxh3 {[%clk 0:00:03.1]} 45. Nc3 {[%clk 0:00:09.5]} 45... Qxf4+
{[%clk 0:00:02.3]} 46. Kb2 {[%clk 0:00:09]} 46... h2 {[%clk 0:00:03.1]} 47. Qg2
{[%clk 0:00:08.1]} 47... Qh6 {[%clk 0:00:02.8]} 48. Qh1 {[%clk 0:00:07.7]} 48...
Rf8 {[%clk 0:00:02.2]} 49. Ne4 {[%clk 0:00:05.7]} 49... Qf4 {[%clk 0:00:02]} 50.
Ka3 {[%clk 0:00:04.8]} 50... a5 {[%clk 0:00:01.8]} 51. Qa1+ {[%clk 0:00:03.8]}
51... Kh7 {[%clk 0:00:01.4]} 52. Qh1 {[%clk 0:00:03.7]} 52... Qh4 {[%clk
0:00:01.6]} 53. Nd6 {[%clk 0:00:02.7]} 53... Rf6 {[%clk 0:00:01.3]} 54. Ne8
{[%clk 0:00:02.5]} 54... Rf8 {[%clk 0:00:01.1]} 55. Qb1+ {[%clk 0:00:02]} 1-0

[Event "Late-Titled-Tuesday-Blitz-October-03-2023"]
[Site "Chess.com"]
[Date "2023.10.03"]
[Round "2"]
[White "Djager97"]
[Black "vladislavkovalev"]
[Result "0-1"]
[WhiteElo "2546"]
[BlackElo "2878"]
[TimeControl "180+1"]
[EndTime "14:17:46 PDT"]
[Termination "vladislavkovalev won on time"]

1. e4 {[%clk 0:03:00.9]} 1... e5 {[%clk 0:03:00.1]} 2. Nf3 {[%clk 0:02:59.7]}
2... Nc6 {[%clk 0:03:00.5]} 3. d4 {[%clk 0:03:00.4]} 3... exd4 {[%clk
0:03:00.5]} 4. Nxd4 {[%clk 0:03:01.3]} 4... Qf6 {[%clk 0:02:58.7]} 5. Nf3 {[%clk
0:02:59.5]} 5... Bb4+ {[%clk 0:02:48.1]} 6. c3 {[%clk 0:02:59.5]} 6... Bc5
{[%clk 0:02:48.5]} 7. Be2 {[%clk 0:03:00.4]} 7... Nge7 {[%clk 0:02:48.1]} 8. Bg5
{[%clk 0:02:57.6]} 8... Qg6 {[%clk 0:02:39.1]} 9. O-O {[%clk 0:02:58.1]} 9... d6
{[%clk 0:02:33.6]} 10. Bh4 {[%clk 0:02:57.7]} 10... h6 {[%clk 0:02:25.9]} 11. b4
{[%clk 0:02:52.3]} 11... Bb6 {[%clk 0:02:25.3]} 12. b5 {[%clk 0:02:51.9]} 12...
Ne5 {[%clk 0:02:22.6]} 13. Nxe5 {[%clk 0:02:51.2]} 13... dxe5 {[%clk 0:02:23.5]}
14. Bxe7 {[%clk 0:02:51.7]} 14... Kxe7 {[%clk 0:02:24.3]} 15. Nd2 {[%clk
0:02:42.6]} 15... Bh3 {[%clk 0:02:16.2]} 16. Bf3 {[%clk 0:02:42]} 16... Rad8
{[%clk 0:02:10.6]} 17. Qe2 {[%clk 0:02:40.8]} 17... Be6 {[%clk 0:01:49.1]} 18.
Nc4 {[%clk 0:02:33.2]} 18... Bxc4 {[%clk 0:01:38.5]} 19. Qxc4 {[%clk 0:02:34.1]}
19... Rd2 {[%clk 0:01:38.8]} 20. a4 {[%clk 0:02:28.6]} 20... Qe6 {[%clk
0:01:31.1]} 21. Qb4+ {[%clk 0:02:17.9]} 21... Qd6 {[%clk 0:01:31.2]} 22. Qxd6+
{[%clk 0:01:54.3]} 22... Rxd6 {[%clk 0:01:09.3]} 23. a5 {[%clk 0:01:45]} 23...
Bc5 {[%clk 0:01:07.7]} 24. Rfd1 {[%clk 0:01:42.8]} 24... Rhd8 {[%clk 0:00:42.3]}
25. Rd5 {[%clk 0:01:43.2]} 25... Rxd5 {[%clk 0:00:41.4]} 26. exd5 {[%clk
0:01:44.1]} 26... Kd6 {[%clk 0:00:38.8]} 27. Be4 {[%clk 0:01:34.3]} 27... Ra8
{[%clk 0:00:34.5]} 28. g4 {[%clk 0:01:07.5]} 28... a6 {[%clk 0:00:28.8]} 29. c4
{[%clk 0:01:07.2]} 29... Bd4 {[%clk 0:00:17]} 30. Ra3 {[%clk 0:01:04.6]} 30...
Ra7 {[%clk 0:00:17.1]} 31. Kg2 {[%clk 0:00:56.3]} 31... Kc5 {[%clk 0:00:17.6]}
32. bxa6 {[%clk 0:00:46.5]} 32... Rxa6 {[%clk 0:00:15.7]} 33. Rb3 {[%clk
0:00:43.3]} 33... Ra7 {[%clk 0:00:06.1]} 34. Bd3 {[%clk 0:00:38]} 34... Kd6
{[%clk 0:00:04.6]} 35. h4 {[%clk 0:00:32.6]} 35... Rxa5 {[%clk 0:00:04.6]} 36.
Rxb7 {[%clk 0:00:32.2]} 36... Ra2 {[%clk 0:00:05.3]} 37. Rb8 {[%clk 0:00:21.5]}
37... Rxf2+ {[%clk 0:00:05.4]} 38. Kg3 {[%clk 0:00:22.1]} 38... Rd2 {[%clk
0:00:05.3]} 39. Be4 {[%clk 0:00:15.6]} 39... Re2 {[%clk 0:00:05.9]} 40. Bf5
{[%clk 0:00:14.9]} 40... Re3+ {[%clk 0:00:06]} 41. Kg2 {[%clk 0:00:14.6]} 41...
g6 {[%clk 0:00:06.9]} 42. Bb1 {[%clk 0:00:07.4]} 42... Kc5 {[%clk 0:00:06.9]}
43. Rc8 {[%clk 0:00:07.1]} 43... Re2+ {[%clk 0:00:04.4]} 44. Kf3 {[%clk
0:00:07]} 44... Rf2+ {[%clk 0:00:05]} 45. Kg3 {[%clk 0:00:07.6]} 45... Kb6
{[%clk 0:00:04.2]} 46. Rb8+ {[%clk 0:00:04.5]} 46... Kc5 {[%clk 0:00:04.7]} 47.
Rc8 {[%clk 0:00:04.9]} 47... Kd6 {[%clk 0:00:05.4]} 48. Rh8 {[%clk 0:00:05]}
48... f5 {[%clk 0:00:03.8]} 49. Rxh6 {[%clk 0:00:03.8]} 49... f4+ {[%clk
0:00:03.8]} 50. Kh3 {[%clk 0:00:04.4]} 50... Kc5 {[%clk 0:00:03.7]} 51. Rxg6
{[%clk 0:00:04.6]} 51... Kxc4 {[%clk 0:00:04.2]} 52. h5 {[%clk 0:00:05.1]} 52...
f3 {[%clk 0:00:04.1]} 53. h6 {[%clk 0:00:05.6]} 53... Rf1 {[%clk 0:00:04.9]} 54.
Ba2+ {[%clk 0:00:03.4]} 54... Kd3 {[%clk 0:00:04.5]} 55. Kg3 {[%clk 0:00:02.7]}
55... Ke3 {[%clk 0:00:03.6]} 56. h7 {[%clk 0:00:02.9]} 56... Rg1+ {[%clk
0:00:04.2]} 57. Kh4 {[%clk 0:00:03.3]} 57... Rh1+ {[%clk 0:00:04.3]} 58. Kg5
{[%clk 0:00:03.4]} 58... Rxh7 {[%clk 0:00:04.9]} 0-1

[Event "Late-Titled-Tuesday-Blitz-October-03-2023"]
[Site "Chess.com"]
[Date "2023.10.03"]
[Round "2"]
[White "angryspacevoid"]
[Black "GMG"]
[Result "1-0"]
[WhiteElo "2540"]
[BlackElo "2746"]
[TimeControl "180+1"]
[EndTime "14:17:48 PDT"]
[Termination "angryspacevoid won on time"]

1. e4 {[%clk 0:03:00.9]} 1... c5 {[%clk 0:02:58.5]} 2. c3 {[%clk 0:02:57.5]}
2... Nf6 {[%clk 0:02:56.6]} 3. e5 {[%clk 0:02:57.1]} 3... Nd5 {[%clk 0:02:57.1]}
4. d4 {[%clk 0:02:57.4]} 4... cxd4 {[%clk 0:02:58]} 5. Nf3 {[%clk 0:02:57.9]}
5... g6 {[%clk 0:02:56.3]} 6. Bc4 {[%clk 0:02:54.8]} 6... Nb6 {[%clk 0:02:56.1]}
7. Bb3 {[%clk 0:02:55.2]} 7... Bg7 {[%clk 0:02:55.9]} 8. h4 {[%clk 0:02:45.5]}
8... Nc6 {[%clk 0:02:49]} 9. h5 {[%clk 0:02:24.4]} 9... dxc3 {[%clk 0:02:38.9]}
10. h6 {[%clk 0:01:54.9]} 10... Bxe5 {[%clk 0:02:35.2]} 11. Nxe5 {[%clk
0:01:51.1]} 11... Nxe5 {[%clk 0:02:36.1]} 12. Nxc3 {[%clk 0:01:45.5]} 12... d6
{[%clk 0:02:24.5]} 13. Qd4 {[%clk 0:01:43.6]} 13... Rg8 {[%clk 0:02:02.3]} 14.
f4 {[%clk 0:01:21.1]} 14... Nc6 {[%clk 0:02:00.3]} 15. Qg7 {[%clk 0:01:17.8]}
15... Rxg7 {[%clk 0:01:54]} 16. hxg7 {[%clk 0:01:17.8]} 16... Kd7 {[%clk
0:01:13.8]} 17. Bxf7 {[%clk 0:01:15.9]} 17... Nd4 {[%clk 0:01:12.6]} 18. Rxh7
{[%clk 0:00:44.2]} 18... Kc6 {[%clk 0:01:01.8]} 19. Rh8 {[%clk 0:00:17.5]} 19...
Be6 {[%clk 0:00:56.4]} 20. Rxd8 {[%clk 0:00:07.9]} 20... Rxd8 {[%clk 0:00:57.3]}
21. Bxe6 {[%clk 0:00:04.6]} 21... Nxe6 {[%clk 0:00:56.5]} 22. Be3 {[%clk
0:00:03.1]} 22... Nc4 {[%clk 0:00:49.1]} 23. Bf2 {[%clk 0:00:02.4]} 23... Nxg7
{[%clk 0:00:37.1]} 24. O-O-O {[%clk 0:00:02]} 24... Rh8 {[%clk 0:00:30.6]} 25.
Nd5 {[%clk 0:00:02.3]} 25... Kd7 {[%clk 0:00:26.4]} 26. Bd4 {[%clk 0:00:02.5]}
26... Rh7 {[%clk 0:00:22.5]} 27. Bxa7 {[%clk 0:00:02.9]} 27... Rh2 {[%clk
0:00:20.2]} 28. b3 {[%clk 0:00:03.1]} 28... Na5 {[%clk 0:00:17.6]} 29. Rd2
{[%clk 0:00:03.1]} 29... Nc6 {[%clk 0:00:16.4]} 30. Bg1 {[%clk 0:00:02.2]} 30...
Rh1 {[%clk 0:00:16.5]} 31. Rd1 {[%clk 0:00:02.7]} 31... Ne6 {[%clk 0:00:15.8]}
32. Nb6+ {[%clk 0:00:03.1]} 32... Ke8 {[%clk 0:00:15.9]} 33. Nd5 {[%clk
0:00:03.3]} 33... Kf7 {[%clk 0:00:13.8]} 34. Be3 {[%clk 0:00:03.7]} 34... Rh2
{[%clk 0:00:13.6]} 35. Rd2 {[%clk 0:00:04]} 35... Ng7 {[%clk 0:00:13.7]} 36. g4
{[%clk 0:00:03.8]} 36... Rh4 {[%clk 0:00:12.3]} 37. Rg2 {[%clk 0:00:03.6]} 37...
Ne6 {[%clk 0:00:11.8]} 38. Bd2 {[%clk 0:00:03.2]} 38... Rh3 {[%clk 0:00:11.9]}
39. f5 {[%clk 0:00:03.5]} 39... gxf5 {[%clk 0:00:10]} 40. gxf5 {[%clk
0:00:04.4]} 40... Ned4 {[%clk 0:00:10.5]} 41. Nf4 {[%clk 0:00:04.7]} 41... Rh1+
{[%clk 0:00:09.5]} 42. Kb2 {[%clk 0:00:04.7]} 42... Nxf5 {[%clk 0:00:10.4]} 43.
Rf2 {[%clk 0:00:04.9]} 43... e6 {[%clk 0:00:10.2]} 44. Nd3 {[%clk 0:00:04.6]}
44... Rh3 {[%clk 0:00:07.9]} 45. Nf4 {[%clk 0:00:04.6]} 45... Rh7 {[%clk
0:00:07.2]} 46. Rg2 {[%clk 0:00:04.3]} 46... Rg7 {[%clk 0:00:06.3]} 47. Rf2
{[%clk 0:00:04.5]} 47... Rg4 {[%clk 0:00:05.9]} 48. Ne2 {[%clk 0:00:04.5]} 48...
Ne7 {[%clk 0:00:04.9]} 49. Nf4 {[%clk 0:00:04.7]} 49... e5 {[%clk 0:00:05.2]}
50. Nd3 {[%clk 0:00:04.3]} 50... Ke6 {[%clk 0:00:05.5]} 51. b4 {[%clk
0:00:04.1]} 51... Nc6 {[%clk 0:00:05.3]} 52. a4 {[%clk 0:00:03.7]} 52... Ncd4
{[%clk 0:00:05.2]} 53. b5 {[%clk 0:00:03.5]} 53... Ne7 {[%clk 0:00:04.5]} 54. a5
{[%clk 0:00:03.1]} 54... Nxb5 {[%clk 0:00:04.4]} 55. Nb4 {[%clk 0:00:03.6]}
55... Nd5 {[%clk 0:00:03.4]} 56. Nc2 {[%clk 0:00:03.4]} 56... Re4 {[%clk
0:00:02.2]} 57. Rf8 {[%clk 0:00:03.8]} 57... Ndc7 {[%clk 0:00:02.3]} 58. Rb8
{[%clk 0:00:03.9]} 58... Kd7 {[%clk 0:00:02.4]} 59. Rxb7 {[%clk 0:00:04.3]}
59... Kc6 {[%clk 0:00:02.9]} 60. Rb6+ {[%clk 0:00:04.7]} 60... Kc5 {[%clk
0:00:02.8]} 61. Be3+ {[%clk 0:00:04.3]} 1-0

[Event "Late-Titled-Tuesday-Blitz-October-03-2023"]
[Site "Chess.com"]
[Date "2023.10.03"]
[Round "2"]
[White "Mbneu"]
[Black "DucksParadise"]
[Result "0-1"]
[WhiteElo "2232"]
[BlackElo "2660"]
[TimeControl "180+1"]
[EndTime "14:17:51 PDT"]
[Termination "DucksParadise won by resignation"]

1. d4 {[%clk 0:03:00.9]} 1... d5 {[%clk 0:02:59.9]} 2. c4 {[%clk 0:03:00.9]}
2... e6 {[%clk 0:03:00]} 3. Nf3 {[%clk 0:02:59.2]} 3... c6 {[%clk 0:02:59.8]} 4.
g3 {[%clk 0:02:58.9]} 4... dxc4 {[%clk 0:02:59.3]} 5. Bg2 {[%clk 0:02:59.4]}
5... b5 {[%clk 0:02:50.6]} 6. O-O {[%clk 0:02:55]} 6... Bb7 {[%clk 0:02:46.5]}
7. Nc3 {[%clk 0:02:50.2]} 7... Nd7 {[%clk 0:02:40.8]} 8. Rb1 {[%clk 0:02:49.4]}
8... Ngf6 {[%clk 0:02:31.1]} 9. b3 {[%clk 0:02:49.1]} 9... cxb3 {[%clk
0:02:14.6]} 10. Qxb3 {[%clk 0:02:47]} 10... a6 {[%clk 0:01:49.4]} 11. e4 {[%clk
0:02:45.8]} 11... Be7 {[%clk 0:01:47.5]} 12. e5 {[%clk 0:02:39.2]} 12... Nd5
{[%clk 0:01:47.5]} 13. Ne4 {[%clk 0:02:39.4]} 13... c5 {[%clk 0:01:33.5]} 14.
Bg5 {[%clk 0:02:33.2]} 14... c4 {[%clk 0:01:17.1]} 15. Qd1 {[%clk 0:02:05.6]}
15... O-O {[%clk 0:01:09.8]} 16. Bxe7 {[%clk 0:02:01.5]} 16... Nxe7 {[%clk
0:01:08.4]} 17. Nd6 {[%clk 0:01:56.7]} 17... Bd5 {[%clk 0:01:00.5]} 18. Ng5
{[%clk 0:01:54.9]} 18... h6 {[%clk 0:00:54.5]} 19. Nge4 {[%clk 0:01:49.5]} 19...
Nb6 {[%clk 0:00:40.7]} 20. f4 {[%clk 0:01:45.2]} 20... Nec8 {[%clk 0:00:38.6]}
21. f5 {[%clk 0:01:42.1]} 21... Nxd6 {[%clk 0:00:38.6]} 22. Nxd6 {[%clk
0:01:41.8]} 22... Bxg2 {[%clk 0:00:38.4]} 23. Kxg2 {[%clk 0:01:40.9]} 23... exf5
{[%clk 0:00:34]} 24. Nxf5 {[%clk 0:01:25.1]} 24... Qd5+ {[%clk 0:00:28.2]} 25.
Kg1 {[%clk 0:01:23.8]} 25... Kh7 {[%clk 0:00:22.3]} 26. Rf4 {[%clk 0:01:16.8]}
26... g6 {[%clk 0:00:20.3]} 27. Qg4 {[%clk 0:01:09.9]} 27... Qe6 {[%clk
0:00:15.3]} 28. Ne3 {[%clk 0:00:51.6]} 28... Qxg4 {[%clk 0:00:15.1]} 29. Nxg4
{[%clk 0:00:51.8]} 29... Nd5 {[%clk 0:00:15.1]} 30. Nf6+ {[%clk 0:00:50.6]}
30... Nxf6 {[%clk 0:00:15.1]} 31. Rxf6 {[%clk 0:00:51.3]} 31... c3 {[%clk
0:00:13.8]} 32. Kf2 {[%clk 0:00:49.2]} 32... Rfc8 {[%clk 0:00:11.5]} 33. Ke3
{[%clk 0:00:49.1]} 33... Kg7 {[%clk 0:00:11.6]} 34. Kd3 {[%clk 0:00:46.9]} 34...
a5 {[%clk 0:00:11.7]} 35. Kc2 {[%clk 0:00:46.1]} 35... b4 {[%clk 0:00:11.9]} 36.
Rbf1 {[%clk 0:00:44.5]} 36... Rc7 {[%clk 0:00:12.3]} 37. d5 {[%clk 0:00:43.7]}
37... Re8 {[%clk 0:00:11.6]} 38. e6 {[%clk 0:00:42.8]} 38... fxe6 {[%clk
0:00:11.8]} 39. dxe6 {[%clk 0:00:42.4]} 39... Rce7 {[%clk 0:00:11.8]} 40. Rf7+
{[%clk 0:00:42.5]} 40... Rxf7 {[%clk 0:00:12.3]} 41. Rxf7+ {[%clk 0:00:41.9]}
41... Kg8 {[%clk 0:00:12.7]} 42. Rf6 {[%clk 0:00:42.3]} 42... Kg7 {[%clk
0:00:10.6]} 43. Rf7+ {[%clk 0:00:42.6]} 43... Kg8 {[%clk 0:00:11.2]} 44. Rf6
{[%clk 0:00:43]} 44... Re7 {[%clk 0:00:11.2]} 45. Kb3 {[%clk 0:00:41.3]} 45...
Kg7 {[%clk 0:00:10.7]} 46. Rf2 {[%clk 0:00:35.2]} 46... Rxe6 {[%clk 0:00:11.1]}
47. a3 {[%clk 0:00:35.8]} 47... Rc6 {[%clk 0:00:10.2]} 48. axb4 {[%clk
0:00:35.1]} 48... axb4 {[%clk 0:00:11.1]} 49. Rc2 {[%clk 0:00:34.4]} 49... Rb6
{[%clk 0:00:10.4]} 50. Rf2 {[%clk 0:00:32.2]} 50... g5 {[%clk 0:00:10.3]} 51. g4
{[%clk 0:00:31.8]} 51... Kg6 {[%clk 0:00:10.5]} 52. h3 {[%clk 0:00:32.2]} 52...
h5 {[%clk 0:00:10.6]} 53. Rf3 {[%clk 0:00:28.6]} 53... hxg4 {[%clk 0:00:09.1]}
54. hxg4 {[%clk 0:00:29.2]} 54... Rc6 {[%clk 0:00:09]} 55. Rf1 {[%clk
0:00:25.6]} 55... c2 {[%clk 0:00:09]} 56. Rc1 {[%clk 0:00:25.5]} 56... Kf6
{[%clk 0:00:06.9]} 57. Kxb4 {[%clk 0:00:25.2]} 57... Ke5 {[%clk 0:00:07.4]} 58.
Kb3 {[%clk 0:00:25.1]} 58... Kf4 {[%clk 0:00:07.6]} 59. Kb2 {[%clk 0:00:23.8]}
59... Kxg4 {[%clk 0:00:07.8]} 60. Rg1+ {[%clk 0:00:24.1]} 60... Kf4 {[%clk
0:00:07.9]} 61. Kc1 {[%clk 0:00:25]} 61... g4 {[%clk 0:00:08.1]} 62. Rf1+ {[%clk
0:00:25.5]} 62... Kg3 {[%clk 0:00:07.5]} 63. Rf8 {[%clk 0:00:25]} 63... Kh2
{[%clk 0:00:07.4]} 64. Rh8+ {[%clk 0:00:24.9]} 64... Kg2 {[%clk 0:00:07.5]} 65.
Rg8 {[%clk 0:00:24.7]} 65... g3 {[%clk 0:00:08.1]} 66. Rf8 {[%clk 0:00:25.1]}
66... Kh2 {[%clk 0:00:08.5]} 67. Rh8+ {[%clk 0:00:25.1]} 67... Kg1 {[%clk
0:00:08.4]} 68. Rg8 {[%clk 0:00:26]} 68... g2 {[%clk 0:00:08.9]} 69. Rf8 {[%clk
0:00:26]} 69... Rc4 {[%clk 0:00:08.7]} 70. Rf7 {[%clk 0:00:24]} 70... Kh2 {[%clk
0:00:08.6]} 71. Rh7+ {[%clk 0:00:24]} 71... Kg3 {[%clk 0:00:09.1]} 72. Rg7+
{[%clk 0:00:23.4]} 72... Rg4 {[%clk 0:00:09.7]} 0-1

[Event "Late-Titled-Tuesday-Blitz-October-03-2023"]
[Site "Chess.com"]
[Date "2023.10.03"]
[Round "2"]
[White "roxannyzoldyck"]
[Black "maximnovik"]
[Result "1-0"]
[WhiteElo "2217"]
[BlackElo "2434"]
[TimeControl "180+1"]
[EndTime "14:17:57 PDT"]
[Termination "roxannyzoldyck won by checkmate"]

1. e4 {[%clk 0:03:00]} 1... c6 {[%clk 0:02:58.8]} 2. d4 {[%clk 0:02:56.9]} 2...
d5 {[%clk 0:02:58.7]} 3. Nc3 {[%clk 0:02:41.8]} 3... dxe4 {[%clk 0:02:58.1]} 4.
Nxe4 {[%clk 0:02:42.7]} 4... Bf5 {[%clk 0:02:57.6]} 5. Ng3 {[%clk 0:02:43]} 5...
Bg6 {[%clk 0:02:58]} 6. N1e2 {[%clk 0:02:43.3]} 6... Nf6 {[%clk 0:02:57]} 7. Nf4
{[%clk 0:02:43.2]} 7... e5 {[%clk 0:02:57.4]} 8. Nxg6 {[%clk 0:02:39.3]} 8...
hxg6 {[%clk 0:02:56.5]} 9. dxe5 {[%clk 0:02:37.2]} 9... Qxd1+ {[%clk 0:02:55.2]}
10. Kxd1 {[%clk 0:02:38]} 10... Ng4 {[%clk 0:02:55.3]} 11. Ne4 {[%clk
0:02:19.2]} 11... Nxe5 {[%clk 0:02:52.4]} 12. Bf4 {[%clk 0:02:17.8]} 12... Nbd7
{[%clk 0:02:52.6]} 13. c3 {[%clk 0:02:15.2]} 13... O-O-O {[%clk 0:02:51]} 14.
Kc2 {[%clk 0:02:15.5]} 14... f6 {[%clk 0:02:41.7]} 15. Be2 {[%clk 0:02:11.6]}
15... g5 {[%clk 0:02:38.6]} 16. Bg3 {[%clk 0:02:09.4]} 16... Nc5 {[%clk
0:02:35.6]} 17. Nxg5 {[%clk 0:01:48.9]} 17... fxg5 {[%clk 0:02:27.2]} 18. Bxe5
{[%clk 0:01:48.3]} 18... Bd6 {[%clk 0:02:23.4]} 19. Bxg7 {[%clk 0:01:44.7]}
19... Rhe8 {[%clk 0:02:17.7]} 20. Bg4+ {[%clk 0:01:43.6]} 20... Kc7 {[%clk
0:02:18.2]} 21. Rhe1 {[%clk 0:01:43.6]} 21... Bxh2 {[%clk 0:02:06.5]} 22. g3
{[%clk 0:01:37.5]} 22... Ne4 {[%clk 0:02:06.4]} 23. Re2 {[%clk 0:01:34]} 23...
Bxg3 {[%clk 0:01:32]} 24. fxg3 {[%clk 0:01:21.4]} 24... Nxg3 {[%clk 0:01:29.9]}
25. Rxe8 {[%clk 0:01:18.6]} 25... Rxe8 {[%clk 0:01:30.4]} 26. Rd1 {[%clk
0:01:17.9]} 26... Re4 {[%clk 0:01:27.3]} 27. Rd7+ {[%clk 0:01:13.6]} 27... Kb6
{[%clk 0:01:21.1]} 28. Bf3 {[%clk 0:01:00.1]} 28... Rf4 {[%clk 0:01:18.2]} 29.
Bd4+ {[%clk 0:00:59.2]} 29... c5 {[%clk 0:01:16.1]} 30. Rxb7+ {[%clk 0:00:58.8]}
30... Ka6 {[%clk 0:01:15.6]} 31. Bxc5 {[%clk 0:00:53.4]} 31... Rxf3 {[%clk
0:01:14.5]} 32. Rxa7+ {[%clk 0:00:53.2]} 32... Kb5 {[%clk 0:01:14.7]} 33. Bd4
{[%clk 0:00:51.4]} 33... Nf5 {[%clk 0:01:08.4]} 34. a4+ {[%clk 0:00:46.5]} 34...
Kc6 {[%clk 0:01:07.4]} 35. Ra6+ {[%clk 0:00:47.1]} 35... Kd5 {[%clk 0:01:07]}
36. Rg6 {[%clk 0:00:44]} 36... Rg3 {[%clk 0:01:01.8]} 37. Bf6 {[%clk 0:00:44.3]}
37... g4 {[%clk 0:01:00.5]} 38. a5 {[%clk 0:00:43.8]} 38... Rg1 {[%clk
0:00:44.5]} 39. a6 {[%clk 0:00:35.8]} 39... Ra1 {[%clk 0:00:43.8]} 40. Bd8
{[%clk 0:00:33.7]} 40... g3 {[%clk 0:00:41.4]} 41. Kb3 {[%clk 0:00:28.4]} 41...
Ke4 {[%clk 0:00:28.7]} 42. Kb4 {[%clk 0:00:24.1]} 42... Kf3 {[%clk 0:00:28.6]}
43. Kb5 {[%clk 0:00:21.4]} 43... g2 {[%clk 0:00:26]} 44. Bb6 {[%clk 0:00:21.5]}
44... Ng3 {[%clk 0:00:19.5]} 45. Rxg3+ {[%clk 0:00:17.1]} 45... Kxg3 {[%clk
0:00:18.7]} 46. a7 {[%clk 0:00:17.2]} 46... Kf4 {[%clk 0:00:18.2]} 47. Kc6
{[%clk 0:00:17.6]} 47... Ke5 {[%clk 0:00:14.1]} 48. Kb7 {[%clk 0:00:17.9]} 48...
Kd5 {[%clk 0:00:11.9]} 49. a8=Q {[%clk 0:00:17.7]} 49... Rxa8 {[%clk 0:00:12.5]}
50. Kxa8 {[%clk 0:00:18.6]} 50... Kc6 {[%clk 0:00:12.9]} 51. Bd4 {[%clk
0:00:18.8]} 51... Kb5 {[%clk 0:00:12.8]} 52. Kb7 {[%clk 0:00:18.9]} 52... Kc4
{[%clk 0:00:13.2]} 53. b4 {[%clk 0:00:19.4]} 53... Kb5 {[%clk 0:00:13.1]} 54.
Bg1 {[%clk 0:00:18.4]} 54... Kc4 {[%clk 0:00:13.6]} 55. Kc6 {[%clk 0:00:18.5]}
55... Kxc3 {[%clk 0:00:13.6]} 56. b5 {[%clk 0:00:19.4]} 56... Kc4 {[%clk
0:00:13.7]} 57. b6 {[%clk 0:00:20.3]} 57... Kd3 {[%clk 0:00:14.4]} 58. b7 {[%clk
0:00:21.2]} 58... Ke2 {[%clk 0:00:14.9]} 59. b8=Q {[%clk 0:00:21.7]} 59... Kf1
{[%clk 0:00:14.6]} 60. Qb6 {[%clk 0:00:21.5]} 60... Ke2 {[%clk 0:00:13.9]} 61.
Qf2+ {[%clk 0:00:22.4]} 61... Kd1 {[%clk 0:00:13.7]} 62. Qxg2 {[%clk 0:00:23.3]}
62... Ke1 {[%clk 0:00:13.9]} 63. Qf2+ {[%clk 0:00:23.6]} 63... Kd1 {[%clk
0:00:13.9]} 64. Kd5 {[%clk 0:00:24.1]} 64... Kc1 {[%clk 0:00:13.9]} 65. Qe2
{[%clk 0:00:25]} 65... Kb1 {[%clk 0:00:13.9]} 66. Qd2 {[%clk 0:00:25.6]} 66...
Ka1 {[%clk 0:00:14]} 67. Kc4 {[%clk 0:00:26.4]} 67... Kb1 {[%clk 0:00:13.8]} 68.
Kb3 {[%clk 0:00:27]} 68... Ka1 {[%clk 0:00:13.8]} 69. Qb2# {[%clk 0:00:27.9]}
1-0